Cogmind - Beta 14 @@@ ROGUE MODE // 2024.08.09 @ 17:37:19 Player: Gitida Result: Destroyed by P-60 Hacker with Shock Rifle Performance ------------- Evolutions (3) 1500 Regions Visited (10) 2000 Robots Destroyed (97) 485 Value Destroyed (4900) 4900 Prototype IDs (20) 400 Alien Tech Used (0) 0 Bonus (2178) 2178 TOTAL SCORE: 11463 Bonus ------- High Alert Combat Kills 1153 Follower Combat Kills 125 Entered Garrisons 400 Used RIF Installer 500 Cogmind --------- Core Integrity 0/700 Matter 256/300 Energy 99/100 System Corruption 13% Temperature Cool (0) Movement Core (50) Location -7/Factory Parts ------- > --- POWER (2) -------- (None) > --- PROPULSION (3) --- (None) > --- UTILITY (5) ------ (None) > --- WEAPON (3) ------- Mini Grenade Launcher > --- INVENTORY (5) ---- Medium Treads Improved Heat Sink Compact Matter Pod (150) Transmission Jammer Relay Coupler [Behemoth] (10) Peak State ------------ > --- POWER ------------ Micro Nuclear Core Light Quantum Reactor > --- PROPULSION ------- Light Treads Light Treads Light Treads > --- UTILITY ---------- Improved Cooling System Large Storage Unit Advanced Phase Shifter Relay Coupler [NC] Relay Coupler [Sentry] > --- WEAPON ----------- Gatling Laser Gauss Cannon Gauss Cannon > --- INVENTORY -------- Light Nuclear Core Improved Heat Sink Large Matter Pod Armor Integrity Analyzer Transmission Jammer Improved Light Armor Plating Relay Coupler [Grunt] Relay Coupler [Hunter] Relay Coupler [Behemoth] Lightning Gun Pulse Rifle Gatling Laser Mini Grenade Launcher Mini Grenade Launcher Improved Datajack [Rating: 52] Favorites ----------- Power Micro Nuclear Core Engine Ion Engine Power Core Micro Nuclear Core Reactor Light Quantum Reactor Propulsion Light Treads Treads Light Treads Leg Aluminum Leg Wheel Compact Wheel Flight Unit VTOL Module Utility Large Storage Unit Device Improved Heat Sink Storage Large Storage Unit Hackware Relay Coupler [Sentry] Protection Light Armor Plating Weapon Gauss Cannon Energy Gun Gatling Laser Energy Cannon Light EM Pulse Cannon Ballistic Gun Autogun Ballistic Cannon Gauss Cannon Launcher Mini Grenade Launcher Special Melee Weapon Datajack Build | -11 -10 -10 -10 -9 -8 -8 -8 -7 -7 -7 ------- Run | Yrd Mat Min Exi Min Mat Gar Mat Fac Gar Fac Slots Evolved 6 | . . . . . 4 . . 2 . . Power 1 | . . . . . . . . 1 . . Propulsion 1 | . . . . . 1 . . . . . Utility 3 | . . . . . 2 . . 1 . . Weapon 1 | . . . . . 1 . . . . . Parts Attached 110 | 6 . 8 1 7 7 9 16 7 27 22 Power 11 | 1 . 1 . . . 1 1 1 4 2 Engine 1 | 1 . . . . . . . . . . Core 8 | . . 1 . . . 1 1 1 2 2 Reactor 2 | . . . . . . . . . 2 . Propulsion 31 | 2 . 6 . 3 2 2 3 . 7 6 Treads 12 | . . . . 2 2 2 3 . 3 . Leg 12 | . . 2 . 1 . . . . 3 6 Wheel 4 | 2 . 2 . . . . . . . . Hover . | . . . . . . . . . . . Flight 3 | . . 2 . . . . . . 1 . Utility 18 | 1 . 1 . 1 3 1 1 2 5 3 Device 7 | . . 1 . . . . 1 1 3 1 Storage 2 | 1 . . . 1 . . . . . . Processor . | . . . . . . . . . . . Hackware 5 | . . . . . 1 1 . 1 1 1 Protection 4 | . . . . . 2 . . . 1 1 Artifact . | . . . . . . . . . . . Weapon 50 | 2 . . 1 3 2 5 11 4 11 11 Energy Gun 19 | 2 . . . 1 1 3 5 . 2 5 Energy Cannon 1 | . . . . . 1 . . . . . Ballistic Gun 7 | . . . . 1 . . 3 1 . 2 Ballistic Cannon 5 | . . . . . . . . . 5 . Launcher 13 | . . . . 1 . 2 2 2 4 2 Special Weapon . | . . . . . . . . . . . Impact Weapon . | . . . . . . . . . . . Slashing Weapon . | . . . . . . . . . . . Piercing Weapon . | . . . . . . . . . . . Special Melee Weapon 5 | . . . 1 . . . 1 1 . 2 Unidentified Prototypes . | . . . . . . . . . . . Corrupted Parts 1 | . . . . . . . . . . 1 System Corruption 1 | . . . . . . . . . . 1 Parts Lost 43 | . . 1 . 1 2 2 3 1 10 23 Power 5 | . . . . . . . . . 2 3 Propulsion 17 | . . 1 . . 1 . 3 1 4 7 Utility 9 | . . . . . . 1 . . 2 6 Weapon 12 | . . . . 1 1 1 . . 2 7 Highest Loss Streak 13 | . . 1 . 1 1 1 3 1 5 13 To Critical Strikes 1 | . . . . . . . . . . 1 Average Slot Usage (%) 91 | . 85 94 100 100 93 98 99 95 84 85 Core 9 | . . 7 14 14 9 9 9 15 8 5 Treads 12 | . . . . 15 27 27 26 18 10 . Leg 7 | . . 18 28 12 . . . . 4 19 Device 11 | . . 9 14 14 9 9 9 8 13 14 Storage 9 | . 14 14 14 14 9 9 9 7 7 6 Hackware 9 | . . . . . 3 9 18 21 11 6 Protection 2 | . . . . . 9 7 . . . 5 Energy Gun 11 | . 28 28 15 17 13 7 16 10 4 11 Energy Cannon 1 | . . . . . 4 7 . . . . Ballistic Gun 3 | . . . . 8 9 7 7 5 . 4 Ballistic Cannon 4 | . . . . . . . . . 11 1 Launcher 2 | . . . . 1 . 3 1 4 4 1 Special Melee Weapon 1 | . . . 12 . . . 1 1 . . Peak Build Rating 52 | 6 6 12 12 14 22 23 30 37 52 52 Average Rating 29 | 3 6 9 11 12 18 22 27 35 41 42 On Entrance 18 | . 6 6 12 12 14 22 22 29 35 48 Naked Turns . | . . . . . . . . . . . Heaviest Build 58 | 13 13 14 14 31 38 39 38 44 58 56 Greatest Support 63 | 26 26 26 20 40 60 60 60 60 60 63 Greatest Overweight (x) 14 | . . . . . . . . 1 14 3 Average Overweight (x) . | . . . . . . . . . 1 . Largest Inventory Capacity 15 | 8 8 8 8 15 15 15 15 15 15 15 Average Capacity 13 | 6 8 8 8 10 15 15 15 15 15 14 Most Carried 15 | 5 7 8 8 15 15 15 15 15 15 15 Average Carried 12 | 3 5 7 7 9 14 14 14 13 14 13 Final Capacity 15 | 8 8 8 8 15 15 15 15 15 15 5 Final Carried 15 | 4 7 8 8 15 15 14 15 15 15 5 Class Distribution -------------------- 23% | Mutant 22% | Bothacker-Tank 21% | Bothacker-Gunner 15% | Scavenger-Tank 7% | Scavenger-Gunner 4% | Derelict-Tank Dominant Class ---------------- Mutant | -10/Materials Mutant | -10/Mines Mutant | -10/Exiles Mutant | -9/Mines Derelict-Tank | -8/Materials Scavenger-Tank | -8/Garrison Scavenger-Gunner | -8/Materials Bothacker-Gunner | -7/Factory Bothacker-Tank | -7/Garrison Bothacker-Tank | -7/Factory Resources | -11 -10 -10 -10 -9 -8 -8 -8 -7 -7 -7 ----------- Run | Yrd Mat Min Exi Min Mat Gar Mat Fac Gar Fac Matter Collected 2584 | 205 55 80 10 108 175 221 216 71 1110 333 Remotely . | . . . . . . . . . . . Salvage Created 3266 | . 99 133 . 166 354 463 450 190 659 752 Parts 150 | . 4 9 . 9 19 21 22 11 29 26 Haulers Intercepted . | . . . . . . . . . . . Recyclers Shooed 1 | . . 1 . . . . . . . . Parts Field Recycled . | . . . . . . . . . . . Retrieved Matter . | . . . . . . . . . . . Parts Self-Destructed . | . . . . . . . . . . . Prevented . | . . . . . . . . . . . Kills | -11 -10 -10 -10 -9 -8 -8 -8 -7 -7 -7 ------- Run | Yrd Mat Min Exi Min Mat Gar Mat Fac Gar Fac Combat Hostiles Destroyed 88 | . 2 5 . 6 7 13 10 4 28 13 Guns 43 | . 2 4 . 3 2 5 10 . 5 12 Cannons 18 | . . . . . 4 2 . . 12 . AOE 25 | . . . . 3 . 6 . 4 11 1 Classes Destroyed 13 | . 1 1 . 1 3 . 2 1 2 2 Worker 3 | . . . . 1 . . . 1 . 1 Builder 3 | . . . . . 1 . . 2 . . Tunneler 1 | . . . . . . . 1 . . . Recycler 1 | . . . . . . . . 1 . . Mechanic 1 | . . . . . . . . . . 1 Swarmer 25 | . . 3 . 3 2 3 3 . 11 . Grunt 42 | . 2 2 . 3 1 8 3 4 11 8 Brawler 2 | . . . . . . . . . 2 . Duelist 2 | . . . . . . . . . 1 1 Sentry 10 | . . . . . 2 2 2 . 3 1 Specialist 2 | . . . . . . . 2 . . . Hunter 4 | . . . . . 2 . . . . 2 Programmer 1 | . . . . . . . . . . 1 Best Kill Streak 8 | . 1 3 . 4 4 6 7 6 8 4 Combat Bots Only 8 | . 1 3 . 3 4 6 7 4 8 4 Max Kills in Single Turn 4 | . 1 2 . 3 1 3 2 3 4 2 Gunslinging 1 | . . 1 . . . . 1 . . . Exploded 4 | . . . . 3 . 3 . 2 4 1 Melee . | . . . . . . . . . . . Uniques/NPCs Destroyed . | . . . . . . . . . . . Combat | -11 -10 -10 -10 -9 -8 -8 -8 -7 -7 -7 -------- Run | Yrd Mat Min Exi Min Mat Gar Mat Fac Gar Fac Hostile Shots Fired 584 | . 7 13 . 20 44 32 40 52 202 174 Missed 167 | . 1 5 . 6 14 7 4 24 68 38 Damage Taken 5988 | . 76 81 . 206 433 478 554 251 1695 2214 Core 930 | . 10 18 . 47 37 35 82 28 246 427 Absorbed by Shields . | . . . . . . . . . . . Core Remaining (%) 80 | 100 . . . 70 . . 72 . . . Volleys Fired 242 | . 9 11 . 12 28 26 20 5 77 54 Largest 3 | . 2 2 . 2 3 3 3 3 3 3 Hottest 208 | . 90 90 . 90 129 142 156 126 208 198 Shots Fired 570 | . 18 22 . 23 84 61 58 11 167 126 Gun 404 | . 18 22 . 22 75 30 56 7 57 117 Cannon 126 | . . . . . 9 25 . . 92 . Launcher 40 | . . . . 1 . 6 2 4 18 9 Special . | . . . . . . . . . . . Kinetic 198 | . . . . 7 28 19 15 1 99 29 Thermal 221 | . 18 22 . 15 28 11 19 6 50 52 Explosive 40 | . . . . 1 . 6 2 4 18 9 Electromagnetic 111 | . . . . . 28 25 22 . . 36 Robot Hit Streak 17 | . 3 13 . 4 5 17 9 6 10 12 Robot Miss Streak 6 | . 3 3 . 3 3 2 2 1 6 4 Penetration Max 1 | . . . . . . . 1 . 1 1 Secondary Targets 10 | . . 2 . 1 . . 2 . . 5 Max Gunslinging Chain 1 | . . 1 . 1 . . 1 . . 1 Shots Hit Robots 380 | . 9 18 9 15 48 39 42 8 100 92 Core Hits 204 | . 5 9 . 11 17 27 18 16 61 40 Critical Kills . | . . . . . . . . . . . Critical Parts Destroyed 1 | . . . . . . . . . . 1 Critical Strikes 12 | . . 3 . . 3 1 1 . 2 2 Burn 8 | . . 3 . . 2 1 1 . . 1 Destroy 1 | . . . . . . . . . . 1 Blast 2 | . . . . . . . . . 2 . Corrupt 1 | . . . . . 1 . . . . . Melee Attacks 23 | . . . 9 . . . 3 1 . 10 Impact . | . . . . . . . . . . . Slashing . | . . . . . . . . . . . Piercing . | . . . . . . . . . . . Sneak Attacks 12 | . . . 9 . . . 3 . . . Combat Hostiles . | . . . . . . . . . . . Follow-up Attacks . | . . . . . . . . . . . Damage Inflicted 9555 | . 102 227 . 302 697 1207 688 740 3351 2241 Guns 4574 | . 102 227 . 184 530 267 642 71 924 1627 Cannons 1784 | . . . . . 167 371 . . 1246 . Explosions 3190 | . . . . 111 . 569 46 669 1181 614 Melee . | . . . . . . . . . . . Ramming 7 | . . . . 7 . . . . . . Kinetic 2393 | . . . . 58 169 186 191 21 1360 408 Thermal 2741 | . 102 227 . 126 201 185 232 50 810 808 Explosive 3086 | . . . . 111 . 465 46 669 1181 614 Electromagnetic 1328 | . . . . . 327 371 219 . . 411 Impact . | . . . . . . . . . . . Slashing . | . . . . . . . . . . . Piercing . | . . . . . . . . . . . Highest Corruption 13 | . . . . . . . . . 3 13 Average Corruption 3 | . . . . . . . . . 3 4 Corruption Purged . | . . . . . . . . . . . Corruption Blocked . | . . . . . . . . . . . Effects 35 | . . . . . . . . . 21 14 Message Errors 9 | . . . . . . . . . 5 4 Matter Fused 8 | . . . . . . . . . 5 3 Heat Flow Errors 2 | . . . . . . . . . 2 . Energy Discharges 5 | . . . . . . . . . 2 3 Parts Fused 2 | . . . . . . . . . 1 1 Data Loss (minor) 5 | . . . . . . . . . 4 1 Misfires 2 | . . . . . . . . . 1 1 Alerts 1 | . . . . . . . . . 1 . Weapon Failures 1 | . . . . . . . . . . 1 Overload Shots . | . . . . . . . . . . . Overflow Damage 197 | . . . . . . . . 90 39 68 Projectiles 26 | . . . . . . . . . 26 . Explosions 171 | . . . . . . . . 90 13 68 Melee . | . . . . . . . . . . . Knockbacks 11 | . . . . . . . . . 11 . Impact . | . . . . . . . . . . . Kinetic 11 | . . . . . . . . . 11 . Secondary . | . . . . . . . . . . . Self-Inflicted Damage 195 | . . . . 10 . 2 2 . 47 134 Shots 8 | . . . . 1 . 1 1 . 1 4 Rammed . | . . . . . . . . . . . Targets Rammed 2 | . . . . 2 . . . . . . Kicked 2 | . . . . 2 . . . . . . Crushed . | . . . . . . . . . . . Highest Temperature 334 | . 127 69 . 50 78 81 217 51 334 319 Average Temperature 60 | . 55 29 . 20 25 29 92 22 77 87 Received Heat Transfer 1878 | . 45 33 . 126 63 180 207 90 465 669 Siege Activations . | . . . . . . . . . . . Robots Corrupted 1 | . . . . . 1 . . . . . Combat Hostiles 1 | . . . . . 1 . . . . . Parts Fried 7 | . . . . . 4 2 . . . 1 Impact Corruptions . | . . . . . . . . . . . Robots Melted 1 | . . 1 . . . . . . . . Combat Hostiles 1 | . . 1 . . . . . . . . Parts Melted 8 | . . 1 . 2 1 . 1 . 1 2 Heat Transferred 6898 | . 249 817 . 359 740 396 592 111 1849 1785 Parts Sabotaged . | . . . . . . . . . . . Parts Stolen . | . . . . . . . . . . . Parts Stripped . | . . . . . . . . . . . Power Chain Reactions 1 | . . . . . . 1 . . . . Alert | -11 -10 -10 -10 -9 -8 -8 -8 -7 -7 -7 ------- Run | Yrd Mat Min Exi Min Mat Gar Mat Fac Gar Fac Peak Influence 1722 | . 94 146 . 199 313 727 472 775 1722 1014 Initial 903 | . . 36 . . 77 207 349 214 542 903 Average 705 | . 43 130 . 164 165 480 312 519 1151 931 Maximum Alert Level 5 | . . . . . 1 3 2 3 5 3 Low Security (%) 20 | 100 100 100 . 100 77 . 13 . . . Level 1 14 | . . . . . 22 26 66 40 . . Level 2 14 | . . . . . . 58 19 7 11 . Level 3 29 | . . . . . . 14 . 51 34 100 Level 4 17 | . . . . . . . . . 46 . Level 5 3 | . . . . . . . . . 7 . High Security . | . . . . . . . . . . . Max Security . | . . . . . . . . . . . Squads Dispatched 17 | . 1 . . . 3 . 4 1 . 8 Investigation 1 | . 1 . . . . . . . . . Extermination 3 | . . . . . . . . 1 . 2 Reinforcement 4 | . . . . . 1 . 2 . . 1 Assault 3 | . . . . . . . 1 . . 2 Garrison 6 | . . . . . 2 . 1 . . 3 Intercept . | . . . . . . . . . . . Searches Triggered . | . . . . . . . . . . . Construction Impeded 1 | . . . . . . . . . . 1 Haulers Reinforced . | . . . . . . . . . . . Active Scanning Responses . | . . . . . . . . . . . Cargo Convoy Interrupts . | . . . . . . . . . . . Stealth | -11 -10 -10 -10 -9 -8 -8 -8 -7 -7 -7 --------- Run | Yrd Mat Min Exi Min Mat Gar Mat Fac Gar Fac Distress Signals 4 | . 2 . . . 1 . . . . 1 Communications Jammed . | . . . . . . . . . . . Distress Signals . | . . . . . . . . . . . Times Spotted 128 | . 5 4 . 8 12 13 11 8 32 35 Peak Tracking Total 9 | . 3 2 . 3 4 6 4 5 7 9 Tactical Retreats 4 | . . . . . 1 . . . 2 1 Traps | -11 -10 -10 -10 -9 -8 -8 -8 -7 -7 -7 ------- Run | Yrd Mat Min Exi Min Mat Gar Mat Fac Gar Fac Traps Triggered 2 | . . . . . . 1 . . 1 . Indirectly . | . . . . . . . . . . . Trap Hack Attempts . | . . . . . . . . . . . Triggered . | . . . . . . . . . . . Disarmed 1 | . . . . . . . 1 . . . Reprogrammed 3 | . 3 . . . . . . . . . Reused . | . . . . . . . . . . . Traps Extracted . | . . . . . . . . . . . Installed . | . . . . . . . . . . . Triggered 1 | . . . . 1 . . . . . . Machines | -11 -10 -10 -10 -9 -8 -8 -8 -7 -7 -7 ---------- Run | Yrd Mat Min Exi Min Mat Gar Mat Fac Gar Fac Machines Disabled 35 | . . . . 3 . 4 3 21 4 . Max in Single Turn 5 | . . . . 3 . 1 1 5 1 . Garrison Access 1 | . . . . . . . 1 . . . Garrison Relay 5 | . . . . . . 3 . . 2 . Machines Repaired . | . . . . . . . . . . . Machines Dismantled . | . . . . . . . . . . . Machines Sabotaged . | . . . . . . . . . . . Overloaded Fab Kills . | . . . . . . . . . . . Hacking | -11 -10 -10 -10 -9 -8 -8 -8 -7 -7 -7 --------- Run | Yrd Mat Min Exi Min Mat Gar Mat Fac Gar Fac Machines Accessed 19 | . 3 . 3 1 2 1 4 2 2 1 Terminals 14 | . 3 . . 1 1 1 4 1 2 1 Fabricators . | . . . . . . . . . . . Repair Stations . | . . . . . . . . . . . Recycling Units . | . . . . . . . . . . . Scanalyzers . | . . . . . . . . . . . Garrison Access 2 | . . . . . 1 . . 1 . . Total Hacks 88 | . 14 . 21 5 10 3 20 6 5 4 Successful 54 | . 6 . 21 2 4 . 15 3 1 2 Failed 34 | . 8 . . 3 6 3 5 3 4 2 Catastrophic 3 | . . . . . 1 . . . 2 . Database Lockouts . | . . . . . . . . . . . Manual 16 | . . . . . . . 10 2 . 4 Terminals 62 | . 14 . . 5 7 3 20 4 5 4 Fabricators . | . . . . . . . . . . . Repair Stations . | . . . . . . . . . . . Recycling Units . | . . . . . . . . . . . Scanalyzers . | . . . . . . . . . . . Garrison Access 5 | . . . . . 3 . . 2 . . Terminal Hacks 41 | . 6 . 21 2 2 . 8 1 1 . Record 22 | . . . 21 . . . 1 . . . Prototype ID Bank 3 | . 2 . . . . . . 1 . . Emergency Access Points 2 | . 1 . . . . . . . 1 . Alert Level 3 | . . . . . 2 . 1 . . . Unreport Threat 1 | . . . . . . . 1 . . . Locate Traps 1 | . . . . . . . 1 . . . Disarm Traps 1 | . . . . . . . 1 . . . Reprogram Traps 1 | . 1 . . . . . . . . . Dispatch Records 2 | . . . . 1 . . 1 . . . Registered Components 1 | . . . . . . . 1 . . . Zone Layout 4 | . 2 . . 1 . . 1 . . . Fabricator Hacks . | . . . . . . . . . . . Repair Station Hacks . | . . . . . . . . . . . Recycling Unit Hacks . | . . . . . . . . . . . Scanalyzer . | . . . . . . . . . . . Garrison Access Hacks 4 | . . . . . 2 . . 2 . . Unlock Access 2 | . . . . . 1 . . 1 . . Coupler Status 2 | . . . . . 1 . . 1 . . Unauthorized Hacks 9 | . . . . . . . 7 . . 2 Terminals 9 | . . . . . . . 7 . . 2 Track 1 | . . . . . . . 1 . . . Assimilate 3 | . . . . . . . 2 . . 1 Botnet 5 | . . . . . . . 4 . . 1 Fabricators . | . . . . . . . . . . . Repair Stations . | . . . . . . . . . . . Recycling Units . | . . . . . . . . . . . Scanalyzers . | . . . . . . . . . . . Garrison Access . | . . . . . . . . . . . Data Cores Recovered . | . . . . . . . . . . . Used . | . . . . . . . . . . . Hacking Detections 15 | . 3 . . 1 1 1 4 2 2 1 Full Trace Events 4 | . 1 . . 1 . 1 . . 1 . Feedback Events . | . . . . . . . . . . . Feedback Blocked . | . . . . . . . . . . . Robot Schematics Acquired . | . . . . . . . . . . . Robots Built . | . . . . . . . . . . . Authchips . | . . . . . . . . . . . Time . | . . . . . . . . . . . Total Robot Build Rating . | . . . . . . . . . . . Part Schematics Acquired . | . . . . . . . . . . . Parts Built . | . . . . . . . . . . . Authchips . | . . . . . . . . . . . Time . | . . . . . . . . . . . Total Part Build Rating . | . . . . . . . . . . . Parts Repaired . | . . . . . . . . . . . Time . | . . . . . . . . . . . Parts Recycled . | . . . . . . . . . . . Recycled Matter . | . . . . . . . . . . . Retrieved Matter . | . . . . . . . . . . . Retrieved Components . | . . . . . . . . . . . Parts Scanalyzed . | . . . . . . . . . . . Part Schematics Acquired . | . . . . . . . . . . . Parts Damaged . | . . . . . . . . . . . Bothacking | -11 -10 -10 -10 -9 -8 -8 -8 -7 -7 -7 ------------ Run | Yrd Mat Min Exi Min Mat Gar Mat Fac Gar Fac Used RIF Installer 1 | . . . . . . 1 . . . . Robots Hacked 14 | . . . 7 . . . 1 1 . 5 Non-combat 4 | . . . 3 . . . 1 . . . Combat 10 | . . . 4 . . . . 1 . 5 Robot Hacks Applied 15 | . . . 7 . . . 2 1 . 5 parse_system 9 | . . . 7 . . . 1 . . 1 generate_anomaly 1 | . . . . . . . 1 . . . overwrite_iff 4 | . . . . . . . . . . 4 formatsys_high 1 | . . . . . . . . 1 . . Relay Couplers Released 20 | . . . . . . 11 1 . 8 . Machine Destruction 20 | . . . . . . 11 1 . 8 . Attached 4 | . . . . . . 1 . 1 1 1 Fabnet Peak Effective % . | . . . . . . . . . . . Robots Rewired . | . . . . . . . . . . . Allies Hacked . | . . . . . . . . . . . Hacks Repelled . | . . . . . . . . . . . Allies | -11 -10 -10 -10 -9 -8 -8 -8 -7 -7 -7 -------- Run | Yrd Mat Min Exi Min Mat Gar Mat Fac Gar Fac Total Allies 5 | . . . . . . . . 1 . 4 Largest Group 1 | . . . . . . . . 1 1 1 Highest-Rated Group 32 | . . . . . . . . 32 32 29 Highest-Rated Ally 32 | . . . . . . . . 32 32 29 Total Orders . | . . . . . . . . . . . Ally Attacks 26 | . . . . . . . . 11 2 13 Total Damage 629 | . . . . . . . . 352 91 186 Kills 4 | . . . . . . . . 3 1 . Allies Corrupted . | . . . . . . . . . . . Allies Melted . | . . . . . . . . . . . Intel | -11 -10 -10 -10 -9 -8 -8 -8 -7 -7 -7 ------- Run | Yrd Mat Min Exi Min Mat Gar Mat Fac Gar Fac Robot Analysis Total . | . . . . . . . . . . . Derelict Logs Recovered 1 | . . 1 . . . . . . . . Drone Launches . | . . . . . . . . . . . Drone Recoveries . | . . . . . . . . . . . Exploration | -11 -10 -10 -10 -9 -8 -8 -8 -7 -7 -7 ------------- Run | Yrd Mat Min Exi Min Mat Gar Mat Fac Gar Fac Turns Passed 6170 | 46 134 206 631 388 326 687 613 387 2142 610 Spaces Moved 3069 | 37 95 133 513 219 132 367 309 177 836 251 Core 86 | 1 . . . . . . . . 76 9 Treads 1603 | . . . . 122 132 367 309 177 496 . Legs 1205 | . . 89 513 97 . . . . 264 242 Wheels 175 | 36 95 44 . . . . . . . . Hover . | . . . . . . . . . . . Flight . | . . . . . . . . . . . Fastest Speed 50 | 50 90 90 120 120 160 160 160 160 116 50 Average Speed 163 | 89 90 110 120 142 160 160 160 197 218 139 Slowest Speed 750 | 100 90 120 120 160 160 160 160 240 750 330 Overloaded Moves . | . . . . . . . . . . . Propulsion Burnouts . | . . . . . . . . . . . Robots Hopped . | . . . . . . . . . . . Cave-ins Triggered . | . . . . . . . . . . . Exploration Rate (%) 31 | 4 24 35 92 26 11 50 27 8 66 8 Regions Visited 10 Branch Regions 3 Pre-discovered Areas 1 | . . . 1 . . . . . . . Known Exits Taken 3 | . . . 1 . 1 . . 1 . . Unknown Exits Taken 5 | 1 1 1 . 1 . . 1 . . . Scrap Searched 2 | . . 1 . 1 . . . . . . Spaces Dug 5 | . . . . . . . 5 . . . Terrain Destroyed 246 | . . . . . . 12 24 45 91 74 Melee . | . . . . . . . . . . . Projectile 4 | . . . . . . . . . 4 . AOE 242 | . . . . . . 12 24 45 87 74 Terrain Rammed . | . . . . . . . . . . . Walls Destroyed . | . . . . . . . . . . . Machines Disabled . | . . . . . . . . . . . Actions | -11 -10 -10 -10 -9 -8 -8 -8 -7 -7 -7 --------- Run | Yrd Mat Min Exi Min Mat Gar Mat Fac Gar Fac Total 3731 | 47 125 169 524 275 189 421 389 202 992 398 Wait 163 | . 19 9 . 20 11 8 18 10 17 51 Move 3060 | 36 94 132 512 218 132 366 308 177 834 251 Hop . | . . . . . . . . . . . Pick Up 58 | 5 3 2 1 11 7 4 10 2 10 3 Fast Attach 39 | 5 . 6 . 1 2 1 5 . 11 8 Attach 24 | 1 . . . 1 4 1 2 2 5 8 Detach 3 | . . 2 . . . . . . 1 . Swap 47 | . . 2 1 5 1 7 9 5 11 6 Drop 55 | . . 5 1 5 4 8 14 . 11 7 Fire 242 | . 9 11 . 12 28 26 20 5 77 54 Melee 23 | . . . 9 . . . 3 1 . 10 Ram . | . . . . . . . . . . . Kick 2 | . . . . 2 . . . . . . Crush . | . . . . . . . . . . . Escape Stasis 15 | . . . . . . . . . 15 . Rewire . | . . . . . . . . . . . Trap . | . . . . . . . . . . . Miscellaneous . | . . . . . . . . . . . Route ------- -11/Scrapyard -10/Materials -10/Mines (discovered 2 exits: [*Mat] / *Exi) -10/Exiles (discovered 2 exits: *Min x2) -9/Mines -8/Materials -8/Garrison (discovered 2 exits: *Mat x2) -8/Materials -7/Factory -7/Garrison (discovered 2 exits: *Fac x2) -7/Factory History --------- Turn | Location | Event 4 | -11/Scrapyard | Discovered new exit (range 16) 47 | -11/Scrapyard | Entered Materials 125 | -10/Materials | Discovered new exit (range 14) 181 | -10/Materials | Entered Mines 225 | -10/Mines | Discovered new exit (range 9) 303 | -10/Mines | Build established: Mutant 381 | -10/Mines | Deemed a non-threat by the Exiles lab entrance 382 | -10/Mines | Discovered new exit (range 5) 387 | -10/Mines | Entered Exiles 388 | -10/Exiles | Identified exit to Mines 433 | -10/Exiles | Met 8R-AWN 450 | -10/Exiles | Met EX-HEX 555 | -10/Exiles | Met EX-BIN 719 | -10/Exiles | Met EX-DEC 782 | -10/Exiles | Visited The Gauntlet 931 | -10/Exiles | Learned location of Zion (-6) 1018 | -10/Exiles | Entered Mines 1034 | -9/Mines | Met a Derelict bent on vengeance 1044 | -9/Mines | Found DCF Scrap (13 items) 1184 | -9/Mines | Discovered new exit (range 6) 1406 | -9/Mines | Entered Materials 1406 | -8/Materials | Evolved 4 slots: Propulsion x1, Utility x2, Weapon x1 1562 | -8/Materials | Garrison activated, responded to threat 1732 | -8/Materials | Identified exit to Garrison 1732 | -8/Materials | Entered Garrison 1770 | -8/Garrison | Triggered checkpoint 1801 | -8/Garrison | Garrison Relay disabled 1872 | -8/Garrison | Triggered checkpoint 1910 | -8/Garrison | Triggered checkpoint 1986 | -8/Garrison | Build established: Scavenger-Tank 1994 | -8/Garrison | Discovered new exit (range 14) 2026 | -8/Garrison | Installed Relay Interface Framework 2042 | -8/Garrison | Triggered checkpoint 2089 | -8/Garrison | Garrison Relay disabled 2256 | -8/Garrison | Discovered new exit (range 10) 2280 | -8/Garrison | Triggered checkpoint 2316 | -8/Garrison | Garrison Relay disabled 2419 | -8/Garrison | Entered Materials 2658 | -8/Materials | Build established: Scavenger-Gunner 2727 | -8/Materials | Discovered new exit (range 7) 2936 | -8/Materials | Lost 3 parts (3n) 2937 | -8/Materials | Destroyed 7 combat bots 3032 | -8/Materials | Entered Factory 3032 | -7/Factory | Evolved 2 slots: Power x1, Utility x1 3059 | -7/Factory | Build established: Bothacker-Gunner 3419 | -7/Factory | Identified exit to Garrison 3419 | -7/Factory | Entered Garrison 3419 | -7/Garrison | Accompanied by 1 ally 3445 | -7/Garrison | Triggered checkpoint 3490 | -7/Garrison | Garrison Relay disabled 4127 | -7/Garrison | Triggered checkpoint 4279 | -7/Garrison | Garrison Relay disabled 4310 | -7/Garrison | Discovered new exit (range 8) 4403 | -7/Garrison | Triggered checkpoint 4482 | -7/Garrison | Lost 5 parts (3n1u1w) 4484 | -7/Garrison | Destroyed 8 combat bots 4763 | -7/Garrison | Build established: Bothacker-Tank 5289 | -7/Garrison | Discovered new exit (range 8) 5379 | -7/Garrison | Triggered checkpoint 5561 | -7/Garrison | Entered Factory 5788 | -7/Factory | Build established: Scavenger-Tank 5923 | -7/Factory | Garrison activated, responded to threat 5961 | -7/Factory | First assault squad dispatched 6012 | -7/Factory | Lost 3 parts (1n1u1w) 6122 | -7/Factory | Lost 4 parts (2n1u1w) 6157 | -7/Factory | Core integrity fell below 50% 6164 | -7/Factory | System corruption reached 10% 6165 | -7/Factory | Core integrity fell below 20% 6171 | -7/Factory | Destroyed by P-60 Hacker with Shock Rifle Last Messages --------------- 06159_ Imp. Heat Sink destroyed. 06160_ The unstable cave ceiling collapses. 06160_ Imp. Heat Sink destroyed. 06160_ K-01 Serf collects debris. 06161_ Lrg. Storage Unit destroyed. 06163_ The unstable cave ceiling collapses. 06163_ Critical hit (Smash). 06163_ Mni. Grenade Launcher destroyed. 06163_ System corrupted by crushing effect (+5). 06164_ Mic. Nuclear Core destroyed. 06165_ The unstable cave ceiling collapses. 06165_ Mic. Nuclear Core destroyed. 06165_ Destroyed Mic. Nuclear Core. 06166_ Relay Coupler [Grunt] destroyed. 06166_ Knocked back. 06166_ G-47 Trooper destroyed. 06167_ The unstable cave ceiling collapses. 06167_ R-06 Scavenger collects Assault Rifle. 06168_ K-01 Serf collects debris. 06170_ The unstable cave ceiling collapses. Map ----- +----------------------------------------------------+ | ?????????????????????????????????????????????????? | | ?????????????????????????????????????????????????? | | ?????????????????????????????????????????????????? | | ?????????????????????????????????????????????????? | | ?????????????????????????????????????????????????? | | ?????????????????????????????????????????????????? | | ?????????????????????????????????????????????????? | | ?????????????????????????????????????????????????? | | ?????????????????????????????????????????????????? | | ?????????????????????????????????????????????????? | | ??????????????????????????? ?????????????????????? | | ??????????????????????????? ???????????????????? | | ??????????????????????????? ????????????????? | | ?????????????????????????? ??????????????? | | ?????????????????????????? ????????????? | | ?????????????????????????? ????????????? | | ??????????????????????????u ????????????? | | ?????????????????????????? ?????????????? | | ?????????????????????????? ??????????????? | | ?????????????????????????? #??????#+#####??? | | ???????????############### #?????? ##?? | | ??????????? #??????! # ?? | | ?????????? #???? # ?? | | ?????????? u w +??"" """ # "" | | ????????? #?"?" """ # "" | | ????????? @ #?""" """ # | | ????????? # # "" | | ????????? r u #?""" """ # "" | | ???????????#### ######### ##### """ """ # "" | | ?????????????????# ] #??# """ """ # | | ?????????????????# ] ##?# # | | ?????????????????# #?# # | | ????????????????## #?#########+##+##+# | | ????????????????# ##??# ! + | | ???????????#### # != ##???# # ##### # | | ????????#+## **% #????# #+##### # | | ????? % =[ % # #??# """ # ## # | | ????? % %=%% % #??# """ # ## # | | ????? =[ % # #??# """ # ## # | | ?????? #### #??######## = # | | ?????????########### % k #?######### + | | ?????????# # = # # ###] ]# "" # | | ?????????# """ """ # # ## # "Y # | | ?????????# """ T" # # """ ##[ + "" # | | ?????????# """ """ # +% """ [ ## """ "# # | | ???#?????# # # """ ##% """ "#+#### | | ?? #######+#### # ?# """ "# #??? | | ? #? """ !## T# #??? | | ? #? """ ## """ "# #??? | | ? #??""" [ ## """ "# #?????? | +----------------------------------------------------+ Best States ------------- Heat Dissipation 75 Energy Generation 34 Energy Capacity 250 Matter Stores 300 Matter Capacity 300 Sight Range 16 Terrain Scan Density 10 Jamming Range 12 Armor Coverage 225 Phase Shifting 15 Evasion (%) 55 Recoil Reduction 3 Defensive Hacking 10 Relay Coupler Types 2 Relay Coupler Value 45 Item Schematics ----------------- None Robot Schematics ------------------ None Fabricated ------------ Nothing Alien Tech Used ----------------- None Achievements -------------- None Challenges ------------ None Game ------ Seed MetafieldSkeletonRifle Manual? 0 Play Time 00:57:40 Cumulative 149.1 hours Start 2024.08.09 @ 15:34:48 End 2024.08.09 @ 17:37:19 Sessions 1 Manual Loads 0 Difficulty Rogue Special Mode None Game No. 160 Rogue 160 Adventurer 0 Explorer 0 Win Type - Total 4 Types 3/0/1/0/0/0/0/0/0 Lore% 37 Gallery% 58 Achievement% 54 Wizard Run 0 Options --------- Layout 0 ASCII 0 Keyboard 0 Movement Numpad Keybinds 0 Fullscreen 1 Font 12/Smallcaps Map View 83x54 Zoom Use 0% Tactical HUD 1 Map Filters NONE Filters NONE Steam 1 RUN: 7e98687f-0fba-4f06-80dc-5028bfccbee7